Workbook

Sheet Kapitalbedarf
A1: Kapitalbedarfsplan | Z1: 0
Z2: 0.07
A3: Unternehmen | B3: Beispiel GmbH | D3: Planungsjahr | E3: 2026 | G3: Währung | H3: EUR | K3: Zusammenfassung | Z3: 0.19
A4: Hinweis | B4: Gelbe Felder = Eingabe · Graue Felder = automatisch | K4: Summe Investitionen (brutto) | L4: =G16 -> € 31,207.40
K5: Summe Gründungskosten (brutto) | L5: =E26 -> € 3,087.00
A6: A) Investitionen (einmalig) | K6: Laufende Auszahlungen (Jahr) | L6: =Y37 -> € 132,772.00
A7: Kategorie | B7: Position | C7: Menge | D7: Einzelpreis (netto) | E7: MwSt % | F7: Netto (berechnet) | G7: Brutto (berechnet) | H7: Zahlungsmonat | I7: Notiz | K7: Peak Finanzierungsbedarf | L7: =MAX(0,-MIN(M51:X51)) -> € 33,594.90 | M7: Jan | N7: Feb | O7: Mrz | P7: Apr | Q7: Mai | R7: Jun | S7: Jul | T7: Aug | U7: Sep | V7: Okt | W7: Nov | X7: Dez | Y7: Total 12M
A8: IT | B8: Laptops | C8: 3 | D8: € 1,200.00 | E8: 19.0% | F8: =IF(OR($C8="",$D8=""),"",$C8*$D8) -> € 3,600.00 | G8: =IF($F8="","",$F8*(1+$E8)) -> € 4,284.00 | H8: 1 | I8: Arbeitsgeräte | K8: Reserve/Puffer (Eingabe) | L8: € 5,000.00 | M8: =IF($H8=1,$G8,0) -> € 4,284.00 | N8: =IF($H8=2,$G8,0) -> € 0.00 | O8: =IF($H8=3,$G8,0) -> € 0.00 | P8: =IF($H8=4,$G8,0) -> € 0.00 | Q8: =IF($H8=5,$G8,0) -> € 0.00 | R8: =IF($H8=6,$G8,0) -> € 0.00 | S8: =IF($H8=7,$G8,0) -> € 0.00 | T8: =IF($H8=8,$G8,0) -> € 0.00 | U8: =IF($H8=9,$G8,0) -> € 0.00 | V8: =IF($H8=10,$G8,0) -> € 0.00 | W8: =IF($H8=11,$G8,0) -> € 0.00 | X8: =IF($H8=12,$G8,0) -> € 0.00 | Y8: =SUM(M8:X8) -> € 4,284.00
A9: Büro | B9: Schreibtische | C9: 4 | D9: € 250.00 | E9: 19.0% | F9: € 1,000.00 | G9: € 1,190.00 | H9: 1 | K9: Gesamtkapitalbedarf | L9: =L7+L8 -> € 38,594.90 | M9: € 1,190.00 | N9: € 0.00 | O9: € 0.00 | P9: € 0.00 | Q9: € 0.00 | R9: € 0.00 | S9: € 0.00 | T9: € 0.00 | U9: € 0.00 | V9: € 0.00 | W9: € 0.00 | X9: € 0.00 | Y9: € 1,190.00
A10: Büro | B10: Stühle | C10: 4 | D10: € 140.00 | E10: 19.0% | F10: € 560.00 | G10: € 666.40 | H10: 1 | M10: € 666.40 | N10: € 0.00 | O10: € 0.00 | P10: € 0.00 | Q10: € 0.00 | R10: € 0.00 | S10: € 0.00 | T10: € 0.00 | U10: € 0.00 | V10: € 0.00 | W10: € 0.00 | X10: € 0.00 | Y10: € 666.40
A11: Software | B11: ERP/Tools (Setup) | C11: 1 | D11: € 800.00 | E11: 19.0% | F11: € 800.00 | G11: € 952.00 | H11: 2 | I11: Einmalig | K11: Finanzierung | M11: € 0.00 | N11: € 952.00 | O11: € 0.00 | P11: € 0.00 | Q11: € 0.00 | R11: € 0.00 | S11: € 0.00 | T11: € 0.00 | U11: € 0.00 | V11: € 0.00 | W11: € 0.00 | X11: € 0.00 | Y11: € 952.00
A12: Marketing | B12: Branding & Design | C12: 1 | D12: € 1,500.00 | E12: 19.0% | F12: € 1,500.00 | G12: € 1,785.00 | H12: 2 | K12: Eigenkapital | L12: € 25,000.00 | M12: € 0.00 | N12: € 1,785.00 | O12: € 0.00 | P12: € 0.00 | Q12: € 0.00 | R12: € 0.00 | S12: € 0.00 | T12: € 0.00 | U12: € 0.00 | V12: € 0.00 | W12: € 0.00 | X12: € 0.00 | Y12: € 1,785.00
A13: Fahrzeug | B13: Lieferwagen (Anzahlung) | C13: 1 | D13: € 5,000.00 | E13: 19.0% | F13: € 5,000.00 | G13: € 5,950.00 | H13: 3 | I13: Anzahlung | K13: Bankdarlehen | L13: € 20,000.00 | M13: € 0.00 | N13: € 0.00 | O13: € 5,950.00 | P13: € 0.00 | Q13: € 0.00 | R13: € 0.00 | S13: € 0.00 | T13: € 0.00 | U13: € 0.00 | V13: € 0.00 | W13: € 0.00 | X13: € 0.00 | Y13: € 5,950.00
A14: Maschinen | B14: Produktionsgerät | C14: 1 | D14: € 12,000.00 | E14: 19.0% | F14: € 12,000.00 | G14: € 14,280.00 | H14: 3 | K14: Fördermittel/Zuschüsse | L14: € 5,000.00 | M14: € 0.00 | N14: € 0.00 | O14: € 14,280.00 | P14: € 0.00 | Q14: € 0.00 | R14: € 0.00 | S14: € 0.00 | T14: € 0.00 | U14: € 0.00 | V14: € 0.00 | W14: € 0.00 | X14: € 0.00 | Y14: € 14,280.00
A15: Sonstiges | B15: Kaution Büro | C15: 1 | D15: € 2,100.00 | E15: 0.0% | F15: € 2,100.00 | G15: € 2,100.00 | H15: 1 | I15: 3 Monatsmieten | K15: Gesellschafterdarlehen | L15: € 0.00 | M15: € 2,100.00 | N15: € 0.00 | O15: € 0.00 | P15: € 0.00 | Q15: € 0.00 | R15: € 0.00 | S15: € 0.00 | T15: € 0.00 | U15: € 0.00 | V15: € 0.00 | W15: € 0.00 | X15: € 0.00 | Y15: € 2,100.00
E16: Summe Investitionen | F16: =SUM(F8:F15) -> € 26,560.00 | G16: =SUM(G8:G15) -> € 31,207.40 | K16: Sonstiges | L16: € 0.00
B17: Investitionen pro Monat | K17: Summe Finanzierung | L17: =SUM(L12:L16) -> € 50,000.00 | M17: =SUM(M8:M15) -> € 8,240.40 | N17: € 2,737.00 | O17: € 20,230.00 | P17: € 0.00 | Q17: € 0.00 | R17: € 0.00 | S17: € 0.00 | T17: € 0.00 | U17: € 0.00 | V17: € 0.00 | W17: € 0.00 | X17: € 0.00 | Y17: =SUM(M17:X17) -> € 31,207.40
K18: Finanzierungslücke | L18: =L9-L17 -> -€ 11,405.10
A19: B) Gründungskosten (einmalig)
A20: Kategorie | B20: Position | C20: Betrag (netto) | D20: MwSt % | E20: Brutto (berechnet) | F20: Zahlungsmonat | G20: Notiz | M20: Jan | N20: Feb | O20: Mrz | P20: Apr | Q20: Mai | R20: Jun | S20: Jul | T20: Aug | U20: Sep | V20: Okt | W20: Nov | X20: Dez | Y20: Total 12M
A21: Recht | B21: Notar & Gründung | C21: € 900.00 | D21: 19.0% | E21: =IF($C21="","",$C21*(1+$D21)) -> € 1,071.00 | F21: 1 | M21: =IF($F21=1,$E21,0) -> € 1,071.00 | N21: =IF($F21=2,$E21,0) -> € 0.00 | O21: =IF($F21=3,$E21,0) -> € 0.00 | P21: =IF($F21=4,$E21,0) -> € 0.00 | Q21: =IF($F21=5,$E21,0) -> € 0.00 | R21: =IF($F21=6,$E21,0) -> € 0.00 | S21: =IF($F21=7,$E21,0) -> € 0.00 | T21: =IF($F21=8,$E21,0) -> € 0.00 | U21: =IF($F21=9,$E21,0) -> € 0.00 | V21: =IF($F21=10,$E21,0) -> € 0.00 | W21: =IF($F21=11,$E21,0) -> € 0.00 | X21: =IF($F21=12,$E21,0) -> € 0.00 | Y21: =SUM(M21:X21) -> € 1,071.00
A22: Behörden | B22: Gebühren/Registrierung | C22: € 350.00 | D22: 0.0% | E22: =IF($C22="","",$C22*(1+$D22)) -> € 350.00 | F22: 1 | M22: =IF($F22=1,$E22,0) -> € 350.00 | N22: =IF($F22=2,$E22,0) -> € 0.00 | O22: =IF($F22=3,$E22,0) -> € 0.00 | P22: =IF($F22=4,$E22,0) -> € 0.00 | Q22: =IF($F22=5,$E22,0) -> € 0.00 | R22: =IF($F22=6,$E22,0) -> € 0.00 | S22: =IF($F22=7,$E22,0) -> € 0.00 | T22: =IF($F22=8,$E22,0) -> € 0.00 | U22: =IF($F22=9,$E22,0) -> € 0.00 | V22: =IF($F22=10,$E22,0) -> € 0.00 | W22: =IF($F22=11,$E22,0) -> € 0.00 | X22: =IF($F22=12,$E22,0) -> € 0.00 | Y22: =SUM(M22:X22) -> € 350.00
A23: Web | B23: Website (Setup) | C23: € 600.00 | D23: 19.0% | E23: =IF($C23="","",$C23*(1+$D23)) -> € 714.00 | F23: 2 | M23: =IF($F23=1,$E23,0) -> € 0.00 | N23: =IF($F23=2,$E23,0) -> € 714.00 | O23: =IF($F23=3,$E23,0) -> € 0.00 | P23: =IF($F23=4,$E23,0) -> € 0.00 | Q23: =IF($F23=5,$E23,0) -> € 0.00 | R23: =IF($F23=6,$E23,0) -> € 0.00 | S23: =IF($F23=7,$E23,0) -> € 0.00 | T23: =IF($F23=8,$E23,0) -> € 0.00 | U23: =IF($F23=9,$E23,0) -> € 0.00 | V23: =IF($F23=10,$E23,0) -> € 0.00 | W23: =IF($F23=11,$E23,0) -> € 0.00 | X23: =IF($F23=12,$E23,0) -> € 0.00 | Y23: =SUM(M23:X23) -> € 714.00
A24: Beratung | B24: Steuerberater (Setup) | C24: € 500.00 | D24: 19.0% | E24: =IF($C24="","",$C24*(1+$D24)) -> € 595.00 | F24: 1 | M24: =IF($F24=1,$E24,0) -> € 595.00 | N24: =IF($F24=2,$E24,0) -> € 0.00 | O24: =IF($F24=3,$E24,0) -> € 0.00 | P24: =IF($F24=4,$E24,0) -> € 0.00 | Q24: =IF($F24=5,$E24,0) -> € 0.00 | R24: =IF($F24=6,$E24,0) -> € 0.00 | S24: =IF($F24=7,$E24,0) -> € 0.00 | T24: =IF($F24=8,$E24,0) -> € 0.00 | U24: =IF($F24=9,$E24,0) -> € 0.00 | V24: =IF($F24=10,$E24,0) -> € 0.00 | W24: =IF($F24=11,$E24,0) -> € 0.00 | X24: =IF($F24=12,$E24,0) -> € 0.00 | Y24: =SUM(M24:X24) -> € 595.00
A25: Versicherung | B25: Betriebshaftpflicht (Start) | C25: € 300.00 | D25: 19.0% | E25: =IF($C25="","",$C25*(1+$D25)) -> € 357.00 | F25: 2 | M25: =IF($F25=1,$E25,0) -> € 0.00 | N25: =IF($F25=2,$E25,0) -> € 357.00 | O25: =IF($F25=3,$E25,0) -> € 0.00 | P25: =IF($F25=4,$E25,0) -> € 0.00 | Q25: =IF($F25=5,$E25,0) -> € 0.00 | R25: =IF($F25=6,$E25,0) -> € 0.00 | S25: =IF($F25=7,$E25,0) -> € 0.00 | T25: =IF($F25=8,$E25,0) -> € 0.00 | U25: =IF($F25=9,$E25,0) -> € 0.00 | V25: =IF($F25=10,$E25,0) -> € 0.00 | W25: =IF($F25=11,$E25,0) -> € 0.00 | X25: =IF($F25=12,$E25,0) -> € 0.00 | Y25: =SUM(M25:X25) -> € 357.00
B26: Summe Gründungskosten | C26: =SUM(C21:C25) -> € 2,650.00 | E26: =SUM(E21:E25) -> € 3,087.00
B27: Gründungskosten pro Monat | M27: =SUM(M21:M25) -> € 2,016.00 | N27: € 1,071.00 | O27: € 0.00 | P27: € 0.00 | Q27: € 0.00 | R27: € 0.00 | S27: € 0.00 | T27: € 0.00 | U27: € 0.00 | V27: € 0.00 | W27: € 0.00 | X27: € 0.00 | Y27: =SUM(M27:X27) -> € 3,087.00
A29: C) Laufende Kosten (monatlich)
A30: Kostenart | B30: Position | C30: Monatlicher Betrag (netto) | D30: MwSt % | E30: Monatlicher Betrag (brutto) | F30: Startmonat | G30: Endmonat | H30: Steigerung %/Monat | I30: Notiz | M30: Jan | N30: Feb | O30: Mrz | P30: Apr | Q30: Mai | R30: Jun | S30: Jul | T30: Aug | U30: Sep | V30: Okt | W30: Nov | X30: Dez | Y30: Total Jahr
A31: Miete | B31: Büromiete | C31: € 1,200.00 | D31: 0.0% | E31: =IF($C31="","",$C31*(1+$D31)) -> € 1,200.00 | F31: 1 | G31: 12 | M31: =IF($E31="","",IF(1<$F31,0,IF(1>$G31,0,$E31))) -> € 1,200.00 | N31: =IF($E31="","",IF(2<$F31,0,IF(2>$G31,0,$E31))) -> € 1,200.00 | O31: =IF($E31="","",IF(3<$F31,0,IF(3>$G31,0,$E31))) -> € 1,200.00 | P31: =IF($E31="","",IF(4<$F31,0,IF(4>$G31,0,$E31))) -> € 1,200.00 | Q31: =IF($E31="","",IF(5<$F31,0,IF(5>$G31,0,$E31))) -> € 1,200.00 | R31: =IF($E31="","",IF(6<$F31,0,IF(6>$G31,0,$E31))) -> € 1,200.00 | S31: =IF($E31="","",IF(7<$F31,0,IF(7>$G31,0,$E31))) -> € 1,200.00 | T31: =IF($E31="","",IF(8<$F31,0,IF(8>$G31,0,$E31))) -> € 1,200.00 | U31: =IF($E31="","",IF(9<$F31,0,IF(9>$G31,0,$E31))) -> € 1,200.00 | V31: =IF($E31="","",IF(10<$F31,0,IF(10>$G31,0,$E31))) -> € 1,200.00 | W31: =IF($E31="","",IF(11<$F31,0,IF(11>$G31,0,$E31))) -> € 1,200.00 | X31: =IF($E31="","",IF(12<$F31,0,IF(12>$G31,0,$E31))) -> € 1,200.00 | Y31: =IF($E31="","",SUM(M31:X31)) -> € 14,400.00
A32: Personal | B32: Gehälter | C32: € 8,000.00 | D32: 0.0% | E32: € 8,000.00 | F32: 1 | G32: 12 | M32: € 8,000.00 | N32: € 8,000.00 | O32: € 8,000.00 | P32: € 8,000.00 | Q32: € 8,000.00 | R32: € 8,000.00 | S32: € 8,000.00 | T32: € 8,000.00 | U32: € 8,000.00 | V32: € 8,000.00 | W32: € 8,000.00 | X32: € 8,000.00 | Y32: € 96,000.00
A33: Software | B33: SaaS Abos | C33: € 350.00 | D33: 19.0% | E33: € 416.50 | F33: 1 | G33: 12 | M33: € 416.50 | N33: € 416.50 | O33: € 416.50 | P33: € 416.50 | Q33: € 416.50 | R33: € 416.50 | S33: € 416.50 | T33: € 416.50 | U33: € 416.50 | V33: € 416.50 | W33: € 416.50 | X33: € 416.50 | Y33: € 4,998.00
A34: Marketing | B34: Online Ads | C34: € 1,000.00 | D34: 19.0% | E34: € 1,190.00 | F34: 2 | G34: 12 | M34: € 0.00 | N34: € 1,190.00 | O34: € 1,190.00 | P34: € 1,190.00 | Q34: € 1,190.00 | R34: € 1,190.00 | S34: € 1,190.00 | T34: € 1,190.00 | U34: € 1,190.00 | V34: € 1,190.00 | W34: € 1,190.00 | X34: € 1,190.00 | Y34: € 13,090.00
A35: Versicherung | B35: Versicherungen | C35: € 180.00 | D35: 19.0% | E35: € 214.20 | F35: 1 | G35: 12 | M35: € 214.20 | N35: € 214.20 | O35: € 214.20 | P35: € 214.20 | Q35: € 214.20 | R35: € 214.20 | S35: € 214.20 | T35: € 214.20 | U35: € 214.20 | V35: € 214.20 | W35: € 214.20 | X35: € 214.20 | Y35: € 2,570.40
A36: Sonstiges | B36: Bürobedarf | C36: € 120.00 | D36: 19.0% | E36: € 142.80 | F36: 1 | G36: 12 | M36: € 142.80 | N36: € 142.80 | O36: € 142.80 | P36: € 142.80 | Q36: € 142.80 | R36: € 142.80 | S36: € 142.80 | T36: € 142.80 | U36: € 142.80 | V36: € 142.80 | W36: € 142.80 | X36: € 142.80 | Y36: € 1,713.60
B37: Summe laufende Auszahlungen | M37: =SUM(M31:M36) -> € 9,973.50 | N37: € 11,163.50 | O37: € 11,163.50 | P37: € 11,163.50 | Q37: € 11,163.50 | R37: € 11,163.50 | S37: € 11,163.50 | T37: € 11,163.50 | U37: € 11,163.50 | V37: € 11,163.50 | W37: € 11,163.50 | X37: € 11,163.50 | Y37: =SUM(M37:X37) -> € 132,772.00
A39: D) Einnahmen (optional)
A40: Einnahmeart | B40: Position | C40: Monatlicher Betrag | D40: Startmonat | E40: Endmonat | F40: Steigerung %/Monat | G40: Notiz | M40: Jan | N40: Feb | O40: Mrz | P40: Apr | Q40: Mai | R40: Jun | S40: Jul | T40: Aug | U40: Sep | V40: Okt | W40: Nov | X40: Dez | Y40: Total Jahr
A41: Umsatz | B41: Produktverkäufe | C41: € 12,000.00 | D41: 2 | E41: 12 | M41: =IF($C41="","",IF(1<$D41,0,IF(1>$E41,0,$C41))) -> € 0.00 | N41: =IF($C41="","",IF(2<$D41,0,IF(2>$E41,0,$C41))) -> € 12,000.00 | O41: =IF($C41="","",IF(3<$D41,0,IF(3>$E41,0,$C41))) -> € 12,000.00 | P41: =IF($C41="","",IF(4<$D41,0,IF(4>$E41,0,$C41))) -> € 12,000.00 | Q41: =IF($C41="","",IF(5<$D41,0,IF(5>$E41,0,$C41))) -> € 12,000.00 | R41: =IF($C41="","",IF(6<$D41,0,IF(6>$E41,0,$C41))) -> € 12,000.00 | S41: =IF($C41="","",IF(7<$D41,0,IF(7>$E41,0,$C41))) -> € 12,000.00 | T41: =IF($C41="","",IF(8<$D41,0,IF(8>$E41,0,$C41))) -> € 12,000.00 | U41: =IF($C41="","",IF(9<$D41,0,IF(9>$E41,0,$C41))) -> € 12,000.00 | V41: =IF($C41="","",IF(10<$D41,0,IF(10>$E41,0,$C41))) -> € 12,000.00 | W41: =IF($C41="","",IF(11<$D41,0,IF(11>$E41,0,$C41))) -> € 12,000.00 | X41: =IF($C41="","",IF(12<$D41,0,IF(12>$E41,0,$C41))) -> € 12,000.00 | Y41: =IF($C41="","",SUM(M41:X41)) -> € 132,000.00
A42: Umsatz | B42: Service/Retainer | C42: € 3,000.00 | D42: 1 | E42: 12 | M42: =IF($C42="","",IF(1<$D42,0,IF(1>$E42,0,$C42))) -> € 3,000.00 | N42: =IF($C42="","",IF(2<$D42,0,IF(2>$E42,0,$C42))) -> € 3,000.00 | O42: =IF($C42="","",IF(3<$D42,0,IF(3>$E42,0,$C42))) -> € 3,000.00 | P42: =IF($C42="","",IF(4<$D42,0,IF(4>$E42,0,$C42))) -> € 3,000.00 | Q42: =IF($C42="","",IF(5<$D42,0,IF(5>$E42,0,$C42))) -> € 3,000.00 | R42: =IF($C42="","",IF(6<$D42,0,IF(6>$E42,0,$C42))) -> € 3,000.00 | S42: =IF($C42="","",IF(7<$D42,0,IF(7>$E42,0,$C42))) -> € 3,000.00 | T42: =IF($C42="","",IF(8<$D42,0,IF(8>$E42,0,$C42))) -> € 3,000.00 | U42: =IF($C42="","",IF(9<$D42,0,IF(9>$E42,0,$C42))) -> € 3,000.00 | V42: =IF($C42="","",IF(10<$D42,0,IF(10>$E42,0,$C42))) -> € 3,000.00 | W42: =IF($C42="","",IF(11<$D42,0,IF(11>$E42,0,$C42))) -> € 3,000.00 | X42: =IF($C42="","",IF(12<$D42,0,IF(12>$E42,0,$C42))) -> € 3,000.00 | Y42: =IF($C42="","",SUM(M42:X42)) -> € 36,000.00
B44: Summe Einzahlungen | M44: =SUM(M41:M42) -> € 3,000.00 | N44: € 15,000.00 | O44: € 15,000.00 | P44: € 15,000.00 | Q44: € 15,000.00 | R44: € 15,000.00 | S44: € 15,000.00 | T44: € 15,000.00 | U44: € 15,000.00 | V44: € 15,000.00 | W44: € 15,000.00 | X44: € 15,000.00 | Y44: =SUM(M44:X44) -> € 168,000.00
A46: E) Liquidität & Kapitalbedarf
A47: Monat | M47: Jan | N47: Feb | O47: Mrz | P47: Apr | Q47: Mai | R47: Jun | S47: Jul | T47: Aug | U47: Sep | V47: Okt | W47: Nov | X47: Dez | Y47: Total
A48: Einzahlungen | M48: =M44 -> € 3,000.00 | N48: € 15,000.00 | O48: € 15,000.00 | P48: € 15,000.00 | Q48: € 15,000.00 | R48: € 15,000.00 | S48: € 15,000.00 | T48: € 15,000.00 | U48: € 15,000.00 | V48: € 15,000.00 | W48: € 15,000.00 | X48: € 15,000.00 | Y48: =SUM(M48:X48) -> € 168,000.00
A49: Auszahlungen | M49: =M17+M27+M37 -> € 20,229.90 | N49: € 14,971.50 | O49: € 31,393.50 | P49: € 11,163.50 | Q49: € 11,163.50 | R49: € 11,163.50 | S49: € 11,163.50 | T49: € 11,163.50 | U49: € 11,163.50 | V49: € 11,163.50 | W49: € 11,163.50 | X49: € 11,163.50 | Y49: =SUM(M49:X49) -> € 167,066.40
A50: Netto Cashflow | M50: =M48-M49 -> -€ 17,229.90 | N50: € 28.50 | O50: -€ 16,393.50 | P50: € 3,836.50 | Q50: € 3,836.50 | R50: € 3,836.50 | S50: € 3,836.50 | T50: € 3,836.50 | U50: € 3,836.50 | V50: € 3,836.50 | W50: € 3,836.50 | X50: € 3,836.50 | Y50: =SUM(M50:X50) -> € 933.60
A51: Kumuliert | M51: =M50 -> -€ 17,229.90 | N51: =M51+N50 -> -€ 17,201.40 | O51: -€ 33,594.90 | P51: -€ 29,758.40 | Q51: -€ 25,921.90 | R51: -€ 22,085.40 | S51: -€ 18,248.90 | T51: -€ 14,412.40 | U51: -€ 10,575.90 | V51: -€ 6,739.40 | W51: -€ 2,902.90 | X51: € 933.60 | Y51: =X51 -> € 933.60
